Cogmind - Beta 11.1 @@@ ROGUE MODE // 2022.10.31 @ 17:17:19 Player: Hilbert Result: Destroyed by D-53 Grenadier with Mini Grenade Launcher Performance ------------- Evolutions (0) 0 Regions Visited (2) 400 Robots Destroyed (10) 50 Value Destroyed (379) 379 Prototype IDs (0) 0 Alien Tech Used (0) 0 Bonus (0) 0 TOTAL SCORE: 829 Bonus ------- None Cogmind --------- Core Integrity 0/250 Matter 300/300 Energy 100/100 System Corruption 0% Temperature Cool (0) Movement Core (150) Ox2 Location -10/Mines Parts ------- > --- POWER (1) -------- (None) > --- PROPULSION (2) --- Light Treads > --- UTILITY (2) ------ Small Storage Unit Utility Shielding > --- WEAPON (2) ------- Light Cannon > --- INVENTORY (8) ---- Light Ion Engine Light Nuclear Core Wheel Heat Sink Peak State ------------ > --- POWER ------------ Light Ion Engine > --- PROPULSION ------- Light Treads Compact Wheel > --- UTILITY ---------- Small Storage Unit Utility Shielding > --- WEAPON ----------- EM Pulse Gun Light Assault Rifle > --- INVENTORY -------- Light Ion Engine Light Treads Aluminum Leg Aluminum Leg Wheel Medium Laser Light Assault Rifle [Rating: 7] Favorites ----------- Power Ion Engine Engine Ion Engine Propulsion Light Treads Treads Light Treads Leg Aluminum Leg Wheel Compact Wheel Utility Small Storage Unit Storage Small Storage Unit Protection Utility Shielding Weapon Light Assault Rifle Energy Gun Small Laser Ballistic Gun Light Assault Rifle Ballistic Cannon Light Cannon Build | -11 -10 -10 ------- Run | Scr Mat Min Slots Evolved . | . . . Power . | . . . Propulsion . | . . . Utility . | . . . Weapon . | . . . Parts Attached 12 | . 11 1 Power 1 | . 1 . Engine 1 | . 1 . Core . | . . . Reactor . | . . . Propulsion 5 | . 4 1 Treads 2 | . 2 . Leg 2 | . 1 1 Wheel 1 | . 1 . Hover . | . . . Flight . | . . . Utility 1 | . 1 . Device . | . . . Storage . | . . . Processor . | . . . Hackware . | . . . Protection 1 | . 1 . Artifact . | . . . Weapon 5 | . 5 . Energy Gun 3 | . 3 . Energy Cannon . | . . . Ballistic Gun 1 | . 1 . Ballistic Cannon 1 | . 1 . Launcher . | . . . Special Weapon . | . . . Impact Weapon . | . . . Slashing Weapon . | . . . Piercing Weapon . | . . . Special Melee Weapon . | . . . Unidentified Prototypes . | . . . Parts Lost 11 | . 7 4 Power 2 | . 1 1 Propulsion 4 | . 2 2 Utility . | . . . Weapon 5 | . 4 1 Highest Loss Streak 5 | . 5 4 To Critical Strikes . | . . . Average Slot Usage (%) 91 | . 89 98 Engine 12 | . 11 14 Treads 10 | . 10 14 Leg 10 | . 9 14 Wheel 5 | . 6 . Storage 14 | . 14 14 Protection 11 | . 10 14 Energy Gun 11 | . 11 12 Ballistic Gun 8 | . 10 . Ballistic Cannon 5 | . 3 14 Naked Turns . | . . . Heaviest Build 15 | 10 15 15 Greatest Support 20 | 20 20 10 Greatest Overweight (x) 2 | . 2 2 Average Overweight (x) . | . . 1 Largest Inventory Capacity 8 | 8 8 8 Average Capacity 8 | 8 8 8 Most Carried 7 | 6 7 5 Average Carried 5 | 6 5 4 Final Capacity 8 | 8 8 8 Final Carried 6 | 6 5 4 Class Distribution -------------------- 100% | Mutant Dominant Class ---------------- Mutant | -10/Materials Mutant | -10/Mines Resources | -11 -10 -10 ----------- Run | Scr Mat Min Matter Collected 332 | 200 132 . Remotely . | . . . Salvage Created 407 | . 407 . Parts 25 | . 25 . Haulers Intercepted . | . . . Recyclers Shooed . | . . . Parts Field Recycled . | . . . Retrieved Matter . | . . . Parts Self-Destructed . | . . . Prevented . | . . . Kills | -11 -10 -10 ------- Run | Scr Mat Min Combat Hostiles Destroyed 10 | . 10 . Guns 8 | . 8 . Cannons 2 | . 2 . Classes Destroyed 1 | . 1 . Grunt 10 | . 10 . Best Kill Streak 3 | . 3 . Combat Bots Only 3 | . 3 . Max Kills in Single Turn 1 | . 1 . Gunslinging . | . . . Exploded . | . . . Melee . | . . . Uniques/NPCs Destroyed . | . . . Combat | -11 -10 -10 -------- Run | Scr Mat Min Damage Taken 1398 | . 924 474 Core 252 | . 153 99 Absorbed by Shields . | . . . Redirected to Shielding 31 | . 30 1 Core Remaining (%) 100 | 100 . . Volleys Fired 44 | . 44 . Largest 2 | . 2 . Hottest 90 | . 90 . Shots Fired 78 | . 78 . Gun 73 | . 73 . Cannon 5 | . 5 . Launcher . | . . . Special . | . . . Kinetic 32 | . 32 . Thermal 38 | . 38 . Explosive . | . . . Electromagnetic 8 | . 8 . Robot Hit Streak 13 | . 13 . Robot Miss Streak 2 | . 2 . Penetration Max . | . . . Secondary Targets . | . . . Shots Hit Robots 59 | . 59 . Core Hits 25 | . 25 . Critical Kills . | . . . Critical Parts Destroyed . | . . . Critical Strikes 2 | . 2 . Burn 1 | . 1 . Blast 1 | . 1 . Melee Attacks . | . . . Impact . | . . . Slashing . | . . . Piercing . | . . . Sneak Attacks . | . . . Combat Hostiles . | . . . Follow-up Attacks . | . . . Damage Inflicted 662 | . 660 2 Guns 594 | . 594 . Cannons 53 | . 53 . Explosions . | . . . Melee . | . . . Ramming 15 | . 13 2 Kinetic 213 | . 213 . Thermal 346 | . 346 . Explosive . | . . . Electromagnetic 88 | . 88 . Impact . | . . . Slashing . | . . . Piercing . | . . . Highest Corruption . | . . . Average Corruption . | . . . Corruption Purged . | . . . Corruption Blocked . | . . . Overload Shots . | . . . Overflow Damage . | . . . Projectiles . | . . . Explosions . | . . . Melee . | . . . Knockbacks . | . . . Impact . | . . . Kinetic . | . . . Secondary . | . . . Self-Inflicted Damage 3 | . 3 . Shots . | . . . Rammed 3 | . 3 . Targets Rammed 6 | . 5 1 Kicked 3 | . 2 1 Crushed . | . . . Highest Temperature 216 | . 216 . Average Temperature 64 | . 64 . Received Heat Transfer 594 | . 552 42 Siege Activations . | . . . Robots Corrupted . | . . . Combat Hostiles . | . . . Parts Fried . | . . . Impact Corruptions . | . . . Robots Melted . | . . . Combat Hostiles . | . . . Parts Melted 2 | . 2 . Heat Transferred 1027 | . 1027 . Parts Sabotaged . | . . . Parts Stolen . | . . . Parts Stripped . | . . . Power Chain Reactions . | . . . Missiles Intercepted . | . . . Alert | -11 -10 -10 ------- Run | Scr Mat Min Peak Influence 208 | . 208 81 Initial 81 | . . 81 Average 93 | . 100 78 Maximum Alert Level 1 | . 1 . Low Security (%) 85 | 100 80 100 Level 1 14 | . 19 . Level 2 . | . . . Level 3 . | . . . Level 4 . | . . . Level 5 . | . . . High Security . | . . . Max Security . | . . . Squads Dispatched 2 | . 2 . Investigation . | . . . Extermination . | . . . Reinforcement 2 | . 2 . Assault . | . . . Garrison . | . . . Intercept . | . . . Searches Triggered . | . . . Construction Impeded . | . . . Haulers Reinforced . | . . . Active Scanning Responses . | . . . Cargo Convoy Interrupts . | . . . Stealth | -11 -10 -10 --------- Run | Scr Mat Min Distress Signals . | . . . Communications Jammed . | . . . Distress Signals . | . . . Times Spotted 23 | . 14 9 Peak Tracking Total 7 | . 4 7 Tactical Retreats . | . . . Traps | -11 -10 -10 ------- Run | Scr Mat Min Traps Triggered . | . . . Indirectly . | . . . Trap Hack Attempts . | . . . Triggered . | . . . Disarmed . | . . . Reprogrammed . | . . . Reused . | . . . Traps Extracted . | . . . Installed . | . . . Triggered . | . . . Machines | -11 -10 -10 ---------- Run | Scr Mat Min Machines Disabled . | . . . Max in Single Turn . | . . . Machines Sabotaged . | . . . Garrisons Compromised . | . . . Overloaded Fab Kills . | . . . Hacking | -11 -10 -10 --------- Run | Scr Mat Min Machines Accessed 1 | . 1 . Terminals 1 | . 1 . Fabricators . | . . . Repair Stations . | . . . Recycling Units . | . . . Scanalyzers . | . . . Garrison Access . | . . . Total Hacks 3 | . 3 . Successful 2 | . 2 . Failed 1 | . 1 . Catastrophic . | . . . Database Lockouts . | . . . Manual 3 | . 3 . Terminals 3 | . 3 . Fabricators . | . . . Repair Stations . | . . . Recycling Units . | . . . Scanalyzers . | . . . Garrison Access . | . . . Terminal Hacks 1 | . 1 . Branch Access Points 1 | . 1 . Fabricator Hacks . | . . . Repair Station Hacks . | . . . Recycling Unit Hacks . | . . . Scanalyzer . | . . . Garrison Access Hacks . | . . . Unauthorized Hacks 1 | . 1 . Terminals 1 | . 1 . Botnet 1 | . 1 . Fabricators . | . . . Repair Stations . | . . . Recycling Units . | . . . Scanalyzers . | . . . Garrison Access . | . . . Data Cores Recovered . | . . . Used . | . . . Hacking Detections . | . . . Full Trace Events . | . . . Feedback Events . | . . . Feedback Blocked . | . . . Robot Schematics Acquired . | . . . Robots Built . | . . . Authchips . | . . . Time . | . . . Total Robot Build Rating . | . . . Part Schematics Acquired . | . . . Parts Built . | . . . Authchips . | . . . Time . | . . . Total Part Build Rating . | . . . Parts Repaired . | . . . Time . | . . . Parts Recycled . | . . . Recycled Matter . | . . . Retrieved Matter . | . . . Retrieved Components . | . . . Parts Scanalyzed . | . . . Part Schematics Acquired . | . . . Parts Damaged . | . . . Bothacking | -11 -10 -10 ------------ Run | Scr Mat Min Used RIF Installer . | . . . Robots Hacked . | . . . Non-combat . | . . . Combat . | . . . Robot Hacks Applied . | . . . Relay Couplers Released . | . . . Fabnet Peak Effective % . | . . . Robots Rewired . | . . . Allies Hacked . | . . . Hacks Repelled . | . . . Allies | -11 -10 -10 -------- Run | Scr Mat Min Total Allies . | . . . Largest Group . | . . . Highest-Rated Group . | . . . Highest-Rated Ally . | . . . Total Orders . | . . . Ally Attacks . | . . . Total Damage . | . . . Kills . | . . . Allies Corrupted . | . . . Allies Melted . | . . . Intel | -11 -10 -10 ------- Run | Scr Mat Min Robot Analysis Total . | . . . Derelict Logs Recovered . | . . . Drone Launches . | . . . Drone Recoveries . | . . . Exploration | -11 -10 -10 ------------- Run | Scr Mat Min Turns Passed 477 | 10 370 97 Spaces Moved 213 | 9 154 50 Core 5 | . 4 1 Treads 10 | . 10 . Legs 154 | 9 96 49 Wheels 44 | . 44 . Hover . | . . . Flight . | . . . Fastest Speed 100 | 120 100 150 Average Speed 149 | 120 138 189 Slowest Speed 190 | 120 190 190 Overloaded Moves . | . . . Propulsion Burnouts . | . . . Robots Hopped . | . . . Cave-ins Triggered . | . . . Exploration Rate (%) 18 | 2 30 23 Regions Visited 2 Branch Regions 1 Pre-discovered Areas . | . . . Known Exits Taken 1 | . 1 . Unknown Exits Taken 1 | 1 . . Scrap Searched . | . . . Spaces Dug . | . . . Terrain Destroyed . | . . . Melee . | . . . Projectile . | . . . AOE . | . . . Terrain Rammed . | . . . Walls Destroyed . | . . . Machines Disabled . | . . . Actions | -11 -10 -10 --------- Run | Scr Mat Min Total 292 | 8 232 52 Wait 16 | . 16 . Move 211 | 8 153 50 Hop . | . . . Pick Up 3 | . 3 . Fast Attach 4 | . 4 . Attach 5 | . 4 1 Detach . | . . . Swap 3 | . 3 . Drop . | . . . Fire 44 | . 44 . Melee . | . . . Ram 2 | . 2 . Kick 3 | . 2 1 Crush 1 | . 1 . Escape Stasis . | . . . Rewire . | . . . Trap . | . . . Miscellaneous . | . . . Route ------- -11/Scrapyard -10/Materials -10/Mines History --------- Turn | Location | Event 1 | -11/Scrapyard | Discovered new exit (range 3) 11 | -11/Scrapyard | Entered Materials 72 | -10/Materials | Identified exit to Mines 265 | -10/Materials | Core integrity fell below 50% 285 | -10/Materials | Lost 5 parts (1p2n2w) 301 | -10/Materials | Build established: Mutant 381 | -10/Materials | Entered Mines 445 | -10/Mines | Assembled infested the area 450 | -10/Mines | Assisted by a Guerilla fighting off Assembled 471 | -10/Mines | Core integrity fell below 20% 478 | -10/Mines | Destroyed by D-53 Grenadier with Mini Grenade Launcher Last Messages --------------- I've been tracking a group of Assembled to figure out where they're coming from, and they're closing on this area, come on!" 00451_ AT-1EI(h): "I'll hold them off! Go on ahead or try to find another way!" 00451_ G-47 Trooper knocked back. 00459_ HV Slug penetrates G-34 Mercenary. 00459_ G-34 Mercenary destroyed. 00459_ Kicked U-05 Engineer. 00464_ The unstable cave ceiling collapses. 00467_ Aluminum Leg destroyed. 00468_ Sml. Laser destroyed. 00470_ as-25483 destroyed. 00472_ The unstable cave ceiling collapses. 00474_ as-08959 destroyed. 00475_ The unstable cave ceiling collapses. 00476_ as-74445 destroyed. 00476_ Ion Engine destroyed. 00476_ as-87903 destroyed. 00476_ as-97168 destroyed. 00476_ Aluminum Leg destroyed. Map ----- +----------------------------------------------------+ | ?????????????????????????????????????????????????? | | ?????????????????????????????????????????????????? | | ?????????????????????????????????????????????????? | | ?????????????????????????????????????????????????? | | ?????????????????????????????????????????????????? | | ?????????????????????????????????????????????????? | | ?????????????????????????????????????????????????? | | ?????????????????????????????????????????????????? | | ?????????????????????????????????????????????????? | | ???????????????????????????? ???????????????????? | | ???????????????????????????? = ??????????????????? | | ???????????????????????????? % ??????????????????? | | ?????????????????????##????#*=!??????????????????? | | ????????????????????# #??##=%#??????????????????? | | ???????????????????? ###!%[#??????????????????? | | ????????????????????? *[#??????????????????? | | ?????????????????????? !%#####??????????????? | | ??????????????????????? #??????????????? | | ???????????????????????? #??????????????? | | ????????????????????????? ## #??????????????? | | ????????????????????????## ##?????????????? | | ???????????????????????## ##??????####??? | | ???????????????????????# #?????? ???? | | ???????????????????????# #?????# ???? | | ?????????????????####### #?????# #???? | | ????????????????# @ d #?????# #???? | | ????????????????# ####??# #???? | | ????????????????# ##### d #?# #???? | | ??????????????????????#### # = #??## | | ?????????????????????????## ###### !% #??? | | ???????????????????????????##????## %% #???? | | ??????????????????????????????????## # ### # | | ???????????????????????????????????## # | | ?????????????????????????????????????# # "##### | | ??????????????????????????????????????##### ##???? | | ?????????????????????????????????????###### #????? | | ?????????????????????????????????????# #????? | | ?????????????????????????????????????# #### #????? | | ??????????????????????????????????????????# #????# | | ????????????????????????????????###???????# #????# | | ????????????????????????????????# ## ###### | | ????????????????????????????????# | | ????????????????????????????????# """ ######### | | ?????????????????????????????????????"" ?????????? | | ??????????????????????????????????? """??????????? | | ??????????????????????????????????? ????????????? | | ???????????????????????????????????#?????????????? | | ?????????????????????????????????????????????????? | | | | | +----------------------------------------------------+ Best States ------------- Heat Dissipation 25 Energy Generation 10 Energy Capacity 250 Matter Stores 300 Matter Capacity 300 Sight Range 16 Terrain Scan Density 10 Utility Shielding 33 Evasion (%) 50 Recoil Reduction 1 Item Schematics ----------------- None Robot Schematics ------------------ None Fabricated ------------ Nothing Alien Tech Used ----------------- None Achievements -------------- None Challenges ------------ None Game ------ Seed EtherialCorruptionBroadsword Manual? 0 Play Time 00:08:33 Cumulative 41.7 hours Start 2022.10.31 @ 17:09:11 End 2022.10.31 @ 17:17:19 Sessions 1 Manual Loads 0 Difficulty Rogue Special Mode None Game No. 87 Rogue 87 Adventurer 0 Explorer 0 Win Type - Total 1 Types 1/0/0/0/0/0/0/0/0 Lore% 32 Gallery% 36 Achievement% 30 Wizard Run 0 Options --------- ASCII 0 Keyboard 1 Movement Vi Keybinds 1 Fullscreen 1 Font 18/SmallcapsGlow Map View 76x50 Tactical HUD 1 Map Filters NONE Filters NONE Steam 1 RUN: 31aa4ebc-1dd7-4f44-b4b9-87d13dbe4a78